bitfinex/quotes_BTCUSD_20250628
["timestamp","ask_amount","ask_price","bid_price","bid_amount"]
[1751111912044,42.03613447,107350.0,107340.0,3.03184589]
[1751111917661,42.03613447,107350.0,107340.0,2.40487789]
[1751111917870,42.03613447,107350.0,107340.0,3.03282389]
[1751111921999,42.02496366,107350.0,107340.0,3.03282389]
[1751111924151,42.00186366,107350.0,107340.0,3.03282389]
[1751111925599,42.00186366,107350.0,107340.0,2.40487789]
[1751111925797,42.00186366,107350.0,107340.0,3.38377089]
[1751111926193,42.00186366,107350.0,107340.0,3.03233089]
[1751111927341,42.00186366,107350.0,107340.0,3.38342689]
[1751111927785,42.00186366,107350.0,107340.0,3.03194689]
[1751111928708,42.00186366,107350.0,107340.0,3.02180289]
[1751111929246,42.00186366,107350.0,107340.0,2.40491789]
[1751111929722,42.00186366,107350.0,107340.0,3.03032189]
[1751111932723,42.00186366,107350.0,107340.0,3.21662256]
[1751111934309,42.00186366,107350.0,107340.0,3.21658256]
[1751111936269,42.00186366,107350.0,107340.0,3.21503256]
[1751111937139,41.9906928,107350.0,107340.0,3.21503256]
[1751111937553,41.9906928,107350.0,107340.0,3.02873189]
[1751111938297,41.9683928,107350.0,107340.0,3.02873189]
[1751111943589,41.95909281,107350.0,107340.0,2.87937189]
[1751111943790,41.95909281,107350.0,107340.0,3.07909189]
[1751111947678,41.95909281,107350.0,107340.0,3.05329189]
[1751111947887,41.95909281,107350.0,107340.0,3.02869189]
[1751111950067,41.95909281,107350.0,107340.0,2.40483789]
[1751111950274,41.95909281,107350.0,107340.0,3.28320689]
[1751111950704,41.95909281,107350.0,107340.0,3.25792089]
[1751111951658,41.95909281,107350.0,107340.0,3.22509089]
[1751111952048,41.95909281,107350.0,107340.0,3.19739089]
[1751111953740,41.94792203,107350.0,107340.0,3.19739089]
[1751111954805,39.78651203,107350.0,107340.0,3.19739089]
[1751111961805,39.78651203,107350.0,107340.0,3.24699089]
[1751111963720,39.78651203,107350.0,107340.0,3.19739089]
[1751111964894,39.78651203,107350.0,107340.0,3.32747273]
[1751111969131,39.78651203,107350.0,107340.0,3.36024873]
[1751111975659,39.78651203,107350.0,107340.0,3.51787473]
[1751111976498,39.78651203,107350.0,107340.0,3.32292573]
[1751111983132,39.78651203,107350.0,107340.0,2.53491973]
[1751111983440,39.78651203,107350.0,107340.0,3.52187973]
[1751111989925,39.78651203,107350.0,107340.0,3.78235573]
[1751111993309,39.78651203,107350.0,107340.0,3.42139933]
[1751111993535,39.78651203,107350.0,107340.0,3.29131749]
[1751111993743,39.78651203,107350.0,107340.0,3.47764132]
[1751111994190,39.78651203,107350.0,107340.0,3.50558884]
[1751111997720,39.78651203,107350.0,107340.0,3.30115984]
[1751112002093,39.78651203,107350.0,107340.0,2.25815284]
[1751112002301,39.78651203,107350.0,107340.0,3.72348084]
[1751112003427,39.78651203,107350.0,107340.0,3.78618084]
[1751112003679,39.78651203,107350.0,107340.0,4.22877788]
[1751112004899,39.78651203,107350.0,107340.0,4.16607788]
[1751112005982,39.78151204,107350.0,107340.0,4.16607788]
[1751112006224,39.76120204,107350.0,107340.0,4.16607788]
[1751112006432,39.76120204,107350.0,107340.0,4.03599604]
[1751112007188,39.74667204,107350.0,107340.0,4.03599604]
[1751112007822,39.71599206,107350.0,107340.0,4.09969604]
[1751112008078,39.68000207,107350.0,107340.0,4.09969604]
[1751112009315,39.63346048,107350.0,107340.0,4.09969604]
[1751112009519,39.59563048,107350.0,107340.0,4.09969604]
[1751112009691,39.58383048,107350.0,107340.0,4.09969604]
[1751112009919,39.57837048,107350.0,107340.0,4.09969604]
[1751112010125,39.57131048,107350.0,107340.0,4.09969604]
[1751112012041,39.57131048,107350.0,107340.0,3.80279604]
[1751112012453,39.57131048,107350.0,107340.0,3.77119604]
[1751112012679,39.57131048,107350.0,107340.0,3.73909604]
[1751112014558,39.57131048,107350.0,107340.0,3.89317734]
[1751112014743,39.57131048,107350.0,107340.0,3.95727734]
[1751112016109,39.57131048,107350.0,107340.0,3.89317734]
[1751112016868,39.10796354,107350.0,107340.0,4.51820774]
[1751112017066,39.06142301,107350.0,107340.0,4.58270774]
[1751112017292,39.01488248,107350.0,107340.0,4.58270774]
[1751112017524,38.96992249,107350.0,107340.0,4.58270774]
[1751112017725,38.94472249,107350.0,107340.0,4.58270774]
[1751112017925,38.92463249,107350.0,107340.0,4.58270774]
[1751112020154,38.92463249,107350.0,107340.0,3.11737974]
[1751112020350,38.92463249,107350.0,107340.0,5.50064774]
[1751112020762,38.92463249,107350.0,107340.0,5.14065674]
[1751112020967,38.92463249,107350.0,107340.0,4.90898674]
[1751112021169,38.92463249,107350.0,107340.0,3.97144114]
[1751112024799,38.92463249,107350.0,107340.0,4.28395634]
[1751112025702,38.92463249,107350.0,107340.0,3.20542114]
[1751112025899,38.92463249,107350.0,107340.0,3.16569814]
[1751112026120,38.95623249,107350.0,107340.0,3.13314514]
[1751112027188,38.95623249,107350.0,107340.0,3.07598698]
[1751112027398,38.98673249,107350.0,107340.0,2.24525598]
[1751112027852,38.975562,107350.0,107340.0,2.24525598]
[1751112028067,38.975562,107350.0,107340.0,2.11517414]
[1751112028743,38.975562,107350.0,107340.0,2.30147481]
[1751112029595,38.975562,107350.0,107340.0,3.11151081]
[1751112035178,38.945062,107350.0,107340.0,3.11151081]
[1751112035767,38.976362,107350.0,107340.0,3.11151081]
[1751112036407,38.976362,107350.0,107340.0,3.04392681]
[1751112036816,38.976362,107350.0,107340.0,2.34012861]
[1751112037015,38.976362,107350.0,107340.0,2.80228381]
[1751112037219,38.976362,107350.0,107340.0,2.30187481]
[1751112037446,38.976362,107350.0,107340.0,3.13525014]
[1751112037708,38.96519143,107350.0,107340.0,3.13525014]
[1751112040059,38.90229143,107350.0,107340.0,3.13525014]
[1751112047979,38.90229143,107350.0,107340.0,3.32155081]
[1751112053457,38.89112086,107350.0,107340.0,3.32155081]
[1751112053631,38.89112086,107350.0,107340.0,3.13525014]
[1751112058694,38.89112086,107350.0,107340.0,3.13529014]
[1751112059758,38.89112086,107350.0,107340.0,1.94401054]
[1751112059997,38.89112086,107350.0,107340.0,2.88155614]
[1751112060362,38.89112086,107350.0,107340.0,2.11561414]
[1751112060489,38.89112086,107350.0,107340.0,3.15448514]
[1751112061510,38.89112086,107350.0,107340.0,3.34078581]
[1751112063462,38.87995033,107350.0,107340.0,3.34078581]
[1751112066197,38.87995033,107350.0,107340.0,4.20308281]
[1751112069113,38.87995033,107350.0,107340.0,4.00241281]
[1751112069732,38.87995033,107350.0,107340.0,3.91478281]
[1751112073413,38.86738244,107350.0,107340.0,3.91478281]
[1751112079065,38.86738244,107350.0,107340.0,2.30191481]
[1751112079201,38.86738244,107350.0,107340.0,4.36972981]
[1751112081311,38.86738244,107350.0,107340.0,4.37003381]
[1751112081512,38.86738244,107350.0,107340.0,4.31713381]
[1751112083466,38.85621191,107350.0,107340.0,4.31713381]
[1751112086975,38.85621191,107350.0,107340.0,2.30191481]
[1751112087208,38.85621191,107350.0,107340.0,4.68991481]
[1751112087823,38.85621191,107350.0,107340.0,4.36886481]
[1751112089890,38.85621191,107350.0,107340.0,2.30191481]
[1751112090100,38.85621191,107350.0,107340.0,4.36990381]
[1751112090311,38.85621191,107350.0,107340.0,3.95700381]
[1751112093578,38.84504138,107350.0,107340.0,3.95700381]
[1751112094618,38.84504138,107350.0,107340.0,3.87659581]
[1751112096271,38.84504138,107350.0,107340.0,3.95479781]
[1751112098916,38.90624138,107350.0,107340.0,2.19081361]
[1751112099123,38.90624138,107350.0,107340.0,2.50332881]
[1751112107424,38.90624138,107350.0,107340.0,3.14267381]
[1751112107862,38.87524138,107350.0,107340.0,3.14267381]
[1751112109347,38.84504138,107350.0,107340.0,3.14267381]
[1751112109546,38.84504138,107350.0,107340.0,2.30223481]
[1751112109747,38.84504138,107350.0,107340.0,3.55777681]
[1751112110368,38.84504138,107350.0,107340.0,3.49601681]
[1751112110916,38.84504138,107350.0,107340.0,3.19778681]
[1751112112826,38.84504138,107350.0,107340.0,3.13323581]
[1751112116949,38.84504138,107350.0,107340.0,3.43013581]
[1751112127399,38.84504138,107350.0,107340.0,2.59913481]
[1751112127629,38.84504138,107350.0,107340.0,3.43415781]
[1751112128069,38.84504138,107350.0,107340.0,2.59913481]
[1751112128507,38.84504138,107350.0,107340.0,3.43415781]
[1751112131862,38.84504138,107350.0,107340.0,3.37263881]
[1751112133337,38.84485506,107350.0,107340.0,3.37263881]
[1751112136962,38.84485506,107350.0,107340.0,3.72221281]
[1751112138216,38.84485506,107350.0,107340.0,3.44225981]
[1751112140796,38.84485506,107350.0,107340.0,3.40552781]
[1751112141205,38.84485506,107350.0,107340.0,3.37210881]
[1751112141805,38.87755506,107350.0,107340.0,3.37210881]
[1751112144511,38.87755506,107350.0,107340.0,3.30128081]
[1751112146225,38.87755506,107350.0,107340.0,2.59913481]
[1751112146432,38.87755506,107350.0,107340.0,3.42237981]
[1751112148070,38.87755506,107350.0,107340.0,3.40001081]
[1751112148524,38.87755506,107350.0,107340.0,2.59913481]
[1751112148703,38.87755506,107350.0,107340.0,3.40008281]
[1751112154998,38.80877506,107350.0,107340.0,3.40008281]
[1751112155203,38.79377506,107350.0,107340.0,3.40008281]
[1751112155623,38.79377506,107350.0,107340.0,3.21378214]
[1751112160070,38.79377506,107350.0,107340.0,3.57715414]
[1751112160482,38.77018506,107350.0,107340.0,3.70725056]
[1751112160687,38.74703506,107350.0,107340.0,3.70725056]
[1751112161096,38.74703506,107350.0,107340.0,3.41678556]
[1751112161916,38.74703506,107350.0,107340.0,3.34723956]
[1751112162132,38.73067506,107350.0,107340.0,3.21714314]
[1751112162546,38.71474506,107350.0,107340.0,3.21714314]
[1751112163375,38.69333506,107350.0,107340.0,3.34723967]
[1751112163994,38.64831506,107350.0,107340.0,3.34723967]
[1751112164848,38.55523504,107350.0,107340.0,3.34723967]
[1751112165054,38.54076504,107350.0,107340.0,3.34723967]
[1751112165260,38.49422503,107350.0,107340.0,3.34723967]
[1751112166512,38.49422503,107350.0,107340.0,2.54293067]
[1751112166955,38.49422503,107350.0,107340.0,4.45598767]
[1751112167797,38.49422503,107350.0,107340.0,4.09598767]
[1751112168802,38.47410504,107350.0,107340.0,4.09598767]
[1751112169660,38.46665504,107350.0,107340.0,4.09598767]
[1751112174450,38.45446504,107350.0,107340.0,4.09598767]
[1751112174865,38.45446504,107350.0,107340.0,3.96589114]
[1751112175079,38.44461505,107350.0,107340.0,3.96589114]
[1751112175486,38.41638505,107350.0,107340.0,3.96589114]
[1751112177028,38.41638505,107350.0,107340.0,2.41283414]
[1751112177253,38.41638505,107350.0,107340.0,4.33256814]
[1751112177891,38.41638505,107350.0,107340.0,3.96810814]
[1751112180280,38.41638505,107350.0,107340.0,3.60379114]
[1751112185165,38.41638505,107350.0,107340.0,3.79009181]
[1751112188276,38.41638505,107350.0,107340.0,3.80872181]
[1751112188497,38.41638505,107350.0,107340.0,3.79009181]
[1751112189510,38.41638505,107350.0,107340.0,4.16767381]
[1751112189756,38.41638505,107350.0,107340.0,3.81000181]
[1751112191184,38.41638505,107350.0,107340.0,2.59913481]
[1751112191361,38.41638505,107350.0,107340.0,4.17000181]
[1751112192611,38.41638505,107350.0,107340.0,3.80767381]
[1751112193389,38.37266505,107350.0,107340.0,3.80767381]
[1751112193962,38.37266505,107350.0,107340.0,3.62137314]
[1751112196118,38.37266505,107350.0,107340.0,3.60423114]
[1751112196346,38.37266505,107350.0,107340.0,3.25170114]
[1751112201777,38.37266505,107350.0,107340.0,3.19806414]
[1751112203580,38.37266505,107350.0,107340.0,3.38436481]
[1751112206007,38.37266505,107350.0,107340.0,3.20179881]
[1751112206580,38.40456505,107350.0,107340.0,3.20179881]
[1751112207285,38.37266505,107350.0,107340.0,3.20179881]
[1751112213756,38.40316505,107350.0,107340.0,3.01151581]
[1751112215370,38.40316505,107350.0,107340.0,2.59913481]
[1751112215554,38.43396505,107350.0,107340.0,3.68710881]
[1751112216378,38.43396505,107350.0,107340.0,3.66745881]
[1751112217290,38.43396505,107350.0,107340.0,3.53432381]
[1751112217701,38.43396505,107350.0,107340.0,3.51350381]
[1751112224606,38.43396505,107350.0,107340.0,4.28982381]
[1751112225775,38.43396505,107350.0,107340.0,4.30634381]
[1751112225995,38.43396505,107350.0,107340.0,4.28982381]
[1751112227746,38.40316505,107350.0,107340.0,4.28982381]
[1751112230047,38.40316505,107350.0,107340.0,4.21153381]
[1751112236492,38.40316505,107350.0,107340.0,2.59913481]
[1751112236694,38.40316505,107350.0,107340.0,4.30840581]
[1751112236903,38.40316505,107350.0,107340.0,4.28844581]
[1751112238149,38.37266505,107350.0,107340.0,4.28844581]
[1751112238566,38.37266505,107350.0,107340.0,4.30707581]
[1751112238817,38.37266505,107350.0,107340.0,4.28844581]
[1751112242042,38.37266505,107350.0,107340.0,4.30222481]
[1751112243109,38.37266505,107350.0,107340.0,4.29964681]
[1751112243317,38.37266505,107350.0,107340.0,4.22136681]
[1751112245904,38.37266505,107350.0,107340.0,4.67852781]
[1751112246550,38.37266505,107350.0,107340.0,4.66819781]
[1751112246966,38.37266505,107350.0,107340.0,4.31852781]
[1751112247703,38.37266505,107350.0,107340.0,4.30819781]
[1751112248551,38.32612504,107350.0,107340.0,4.30819781]
[1751112248776,38.30654504,107350.0,107340.0,4.30819781]
[1751112249004,38.29154504,107350.0,107340.0,4.30819781]
[1751112249185,38.27332504,107350.0,107340.0,4.25199702]
[1751112249371,38.25832504,107350.0,107340.0,4.25199702]
[1751112252492,38.25832504,107350.0,107340.0,4.23781502]
[1751112256160,38.25832504,107350.0,107340.0,2.54035602]
[1751112256362,38.25832504,107350.0,107340.0,4.23893602]
[1751112256996,38.25832504,107350.0,107340.0,4.22479702]
[1751112258715,38.25832504,107350.0,107340.0,4.11332714]
[1751112258914,38.31992504,107350.0,107340.0,3.86566314]
[1751112259498,38.31992504,107350.0,107340.0,4.05196381]
[1751112265242,38.28842504,107350.0,107340.0,4.05196381]
[1751112265467,38.25832504,107350.0,107340.0,4.05196381]
[1751112265987,38.25832504,107350.0,107340.0,4.39473481]
[1751112268505,38.25832504,107350.0,107340.0,2.59655681]
[1751112268713,38.25832504,107350.0,107340.0,4.38653481]
[1751112269144,38.25832504,107350.0,107340.0,2.86650321]
[1751112269340,38.25832504,107350.0,107340.0,3.68862781]
[1751112269541,38.29112504,107350.0,107340.0,3.68862781]
[1751112271296,38.29112504,107350.0,107340.0,3.76682481]
[1751112271526,38.25832504,107350.0,107340.0,3.76682481]
[1751112275443,38.19307145,107350.0,107340.0,3.82902481]
[1751112275652,38.14653144,107350.0,107340.0,3.64272414]
[1751112275930,38.09999143,107350.0,107340.0,3.64272414]
[1751112276062,38.03773143,107350.0,107340.0,3.64272414]
[1751112276260,38.03773143,107350.0,107340.0,3.58052414]
[1751112276466,38.03260144,107350.0,107340.0,3.58052414]
[1751112280463,38.03260144,107350.0,107340.0,2.41025614]
[1751112280683,38.03260144,107350.0,107340.0,4.45686914]
[1751112280899,38.03260144,107350.0,107340.0,4.43249914]
[1751112286725,38.03260144,107350.0,107340.0,4.61879981]
[1751112291026,38.03260144,107350.0,107340.0,4.55460581]
[1751112292340,38.03260144,107350.0,107340.0,4.52386181]
[1751112293761,38.03260144,107350.0,107340.0,4.52383881]
[1751112296298,38.03260144,107350.0,107340.0,2.59655681]
[1751112296525,38.03260144,107350.0,107340.0,4.52380981]
[1751112298307,38.03260144,107350.0,107340.0,4.43744981]
[1751112305732,38.03260144,107350.0,107340.0,2.59655681]
[1751112305928,38.03260144,107350.0,107340.0,4.44426581]
[1751112306958,38.03260144,107350.0,107340.0,4.23508581]
[1751112308234,38.03260144,107350.0,107340.0,4.04724581]
[1751112308447,38.03260144,107350.0,107340.0,4.23496581]
[1751112308856,38.03260144,107350.0,107340.0,4.04724581]
[1751112309073,38.03260144,107350.0,107340.0,4.23496581]
[1751112312099,38.03260144,107350.0,107340.0,4.40745681]
[1751112314588,38.03260144,107350.0,107340.0,4.39649481]
[1751112316199,38.03260144,107350.0,107340.0,4.39514281]
[1751112316404,38.03260144,107350.0,107340.0,4.33714381]
[1751112317654,38.03260144,107350.0,107340.0,4.35956581]
[1751112318772,38.03260144,107350.0,107340.0,4.35565881]
[1751112319563,38.03260144,107350.0,107340.0,4.17079881]
[1751112324090,38.03260144,107350.0,107340.0,2.59643681]
[1751112324209,38.03260144,107350.0,107340.0,4.40803281]
[1751112325190,38.03260144,107350.0,107340.0,4.40403281]
[1751112325551,38.03260144,107350.0,107340.0,4.40803281]
[1751112325921,38.03260144,107350.0,107340.0,4.34573181]
[1751112335485,38.03260144,107350.0,107340.0,2.59643681]
[1751112335691,38.03260144,107350.0,107340.0,4.47895981]
[1751112336746,38.03260144,107350.0,107340.0,2.59643681]
[1751112337070,38.03260144,107350.0,107340.0,4.47604981]
[1751112337853,38.03260144,107350.0,107340.0,4.47004981]
[1751112338050,38.03260144,107350.0,107340.0,4.47304981]
[1751112341927,38.03260144,107350.0,107340.0,4.52818781]
[1751112344291,38.03260144,107350.0,107340.0,4.39368281]
[1751112345950,38.03260144,107350.0,107340.0,4.20738214]
[1751112355528,38.03260144,107350.0,107340.0,2.40713614]
[1751112355701,38.03260144,107350.0,107340.0,5.18497614]
[1751112356695,38.03260144,107350.0,107340.0,2.40713614]
[1751112356892,38.03260144,107350.0,107340.0,5.19684614]
[1751112358388,38.03260144,107350.0,107340.0,5.18497614]
[1751112360253,38.03260144,107350.0,107340.0,5.16899314]
[1751112360619,38.03260144,107350.0,107340.0,2.40713614]
[1751112360841,38.03260144,107350.0,107340.0,5.19831514]
[1751112362600,38.03260144,107350.0,107340.0,5.15012614]
[1751112364268,38.03260144,107350.0,107340.0,5.13632014]
[1751112365531,38.03260144,107350.0,107340.0,2.40713614]
[1751112365769,38.03260144,107350.0,107340.0,5.13594514]
[1751112367406,38.03260144,107350.0,107340.0,5.10662314]
[1751112371217,38.03260144,107350.0,107340.0,2.40713614]
[1751112371447,38.03260144,107350.0,107340.0,5.13549114]
[1751112377040,38.03260144,107350.0,107340.0,4.98830514]
[1751112378297,38.03260144,107350.0,107340.0,4.97761914]
[1751112385506,38.03260144,107350.0,107340.0,2.40713614]
[1751112385713,38.03260144,107350.0,107340.0,5.00703514]
[1751112386129,38.03260144,107350.0,107340.0,4.98611514]
[1751112387518,38.03260144,107350.0,107340.0,2.40713614]
[1751112387714,38.03260144,107350.0,107340.0,4.98591214]
[1751112396592,38.03260144,107350.0,107340.0,5.08408114]
[1751112398822,38.03260144,107350.0,107340.0,5.09920114]
[1751112403644,38.03260144,107350.0,107340.0,5.2851114]
[1751112406898,38.03260144,107350.0,107340.0,5.2848314]
[1751112408700,38.03260144,107350.0,107340.0,5.0973914]
[1751112408962,38.03260144,107350.0,107340.0,5.2848314]
[1751112409521,38.03260144,107350.0,107340.0,5.0973914]
[1751112409723,38.03260144,107350.0,107340.0,5.2848314]
[1751112416308,38.03260144,107350.0,107340.0,5.3268054]
[1751112416983,38.03260144,107350.0,107340.0,5.3134254]
[1751112417204,38.03260144,107350.0,107340.0,5.2554254]
[1751112418282,38.03260144,107350.0,107340.0,2.5927664]
[1751112418496,38.03260144,107350.0,107340.0,5.2634144]
[1751112420109,38.03260144,107350.0,107340.0,5.3239244]
[1751112420318,38.03260144,107350.0,107340.0,5.1375704]
[1751112420460,38.06410144,107350.0,107340.0,5.1375704]
[1751112421067,38.06410144,107350.0,107340.0,5.1239394]
[1751112422709,38.09410144,107350.0,107340.0,5.1045624]
[1751112427315,38.06410144,107350.0,107340.0,5.1045624]
[1751112428129,38.06410144,107350.0,107340.0,4.9171224]
[1751112428346,38.06410144,107350.0,107340.0,1.70074905]
[1751112428347,38.09410144,107350.0,107340.0,1.70074905]
[1751112428565,38.09410144,107350.0,107340.0,2.11158905]
[1751112428790,38.09410144,107350.0,107340.0,2.36834709]
[1751112429004,38.03260144,107350.0,107340.0,2.36834709]
[1751112429215,38.03260144,107350.0,107340.0,2.38288794]
[1751112429626,38.06570144,107350.0,107340.0,2.38288794]
[1751112430871,38.06570144,107350.0,107340.0,2.35492594]
[1751112434213,38.09670144,107350.0,107340.0,2.35492594]
[1751112447310,38.09670144,107350.0,107340.0,2.16752594]
[1751112447525,38.09670144,107350.0,107340.0,2.35496594]
[1751112450043,38.09670144,107350.0,107340.0,2.37359594]
[1751112450252,38.09670144,107350.0,107340.0,2.35496594]
[1751112455890,38.09670144,107350.0,107340.0,2.22481284]
[1751112461721,38.06570144,107350.0,107340.0,2.22481284]
[1751112463917,38.03260144,107350.0,107340.0,2.22481284]
[1751112473710,38.03260144,107350.0,107340.0,2.25276884]
[1751112488302,38.03260144,107350.0,107340.0,2.38294102]
[1751112496953,38.06580144,107350.0,107340.0,2.19550102]
[1751112497154,38.09630144,107350.0,107340.0,2.38286102]
[1751112497384,38.09630144,107350.0,107340.0,2.19550102]
[1751112497637,38.09630144,107350.0,107340.0,2.35490502]
[1751112502968,38.09630144,107350.0,107340.0,2.38286202]
[1751112507854,38.09630144,107350.0,107340.0,2.19550202]
[1751112508140,38.09630144,107350.0,107340.0,2.38286202]
[1751112510251,38.06580144,107350.0,107340.0,2.38286202]
[1751112510454,38.03260144,107350.0,107340.0,2.38286202]
[1751112520493,38.03260144,107350.0,107340.0,2.40149202]
[1751112520843,38.03260144,107350.0,107340.0,2.38286202]
[1751112562667,38.06410144,107350.0,107340.0,2.38286202]
[1751112570117,38.09630144,107350.0,107340.0,2.38286202]
[1751112578380,38.09630144,107350.0,107340.0,2.35490502]
[1751112601720,38.06410144,107350.0,107340.0,2.35490502]
[1751112603933,38.03260144,107350.0,107340.0,2.35490502]
[1751112630774,38.03260144,107350.0,107340.0,2.16453117]
[1751112631120,38.03260144,107350.0,107340.0,2.50453117]
[1751112634180,38.03260144,107350.0,107340.0,2.16453117]
[1751112634384,38.03260144,107350.0,107340.0,2.50453117]
[1751112674765,38.06280144,107350.0,107340.0,2.50453117]
[1751112674962,38.09330144,107350.0,107340.0,2.50453117]
[1751112679209,38.06280144,107350.0,107340.0,2.50453117]
[1751112679410,38.03260144,107350.0,107340.0,2.50453117]
[1751112686217,38.06280144,107350.0,107340.0,2.50453117]
[1751112689778,38.03260144,107350.0,107340.0,2.50453117]
[1751112725582,38.03260144,107350.0,107340.0,2.56983117]
[1751112736058,38.03260144,107350.0,107340.0,2.50453117]
[1751112744181,38.03260144,107350.0,107340.0,1.56698557]
[1751112744485,38.03260144,107350.0,107340.0,2.50453117]
[1751112744939,38.06590144,107350.0,107340.0,2.50453117]
[1751112751843,38.06590144,107350.0,107340.0,2.52317117]
[1751112752066,38.06590144,107350.0,107340.0,2.50453117]
[1751112752985,38.09730144,107350.0,107340.0,2.50453117]
[1751112758136,38.03260144,107350.0,107340.0,2.50453117]
[1751112759110,38.06450144,107350.0,107340.0,2.50453117]
[1751112761878,38.06450144,107350.0,107340.0,2.52317117]
[1751112762080,38.06450144,107350.0,107340.0,2.50453117]
[1751112765639,38.09500144,107350.0,107340.0,2.50453117]
[1751112765891,38.09500144,107350.0,107340.0,2.45429117]
[1751112770500,38.09500144,107350.0,107340.0,2.15739117]
[1751112776332,38.09500144,107350.0,107340.0,2.45429117]
[1751112781132,38.09500144,107350.0,107340.0,2.48225017]
[1751112784274,38.09500144,107350.0,107340.0,2.45429117]
[1751112789215,38.06450144,107350.0,107340.0,2.45429117]
[1751112796635,38.09540144,107350.0,107340.0,2.45429117]
[1751112809695,38.06500144,107350.0,107340.0,2.45429117]
[1751112809951,38.09730144,107350.0,107340.0,2.32411899]
[1751112818200,38.06500144,107350.0,107340.0,2.32411899]
[1751112822168,38.06500144,107350.0,107340.0,2.34275899]
[1751112822398,38.06500144,107350.0,107340.0,2.32411899]
[1751112827854,38.06500144,107350.0,107340.0,2.17483899]
[1751112828056,38.06500144,107350.0,107340.0,2.32411899]
[1751112828663,38.09560144,107350.0,107340.0,2.32411899]
[1751112832961,38.06500144,107350.0,107340.0,2.32411899]
[1751112834034,38.09610144,107350.0,107340.0,2.32411899]
[1751112835201,38.06500144,107350.0,107340.0,2.32411899]
[1751112847336,38.03260144,107350.0,107340.0,2.32411899]
[1751112850009,38.06520144,107350.0,107340.0,2.32411899]
[1751112850827,38.06520144,107350.0,107340.0,2.17483899]
[1751112851155,38.09700144,107350.0,107340.0,2.4171469]
[1751112852343,38.09700144,107350.0,107340.0,2.4357869]
[1751112852555,38.09700144,107350.0,107340.0,2.4171469]
[1751112853335,38.09700144,107350.0,107340.0,1.8077317]
[1751112854269,38.09700144,107350.0,107340.0,1.6584517]
[1751112854490,38.09700144,107350.0,107340.0,1.8077317]
[1751112856639,38.09700144,107350.0,107340.0,2.1202469]
[1751112858260,38.06520144,107350.0,107340.0,2.1202469]
[1751112860429,38.03260144,107350.0,107340.0,2.1202469]
[1751112886285,38.03260144,107350.0,107340.0,1.1827013]
[1751112886492,38.09770144,107350.0,107340.0,1.8077317]
[1751112889966,38.09770144,107350.0,107340.0,2.1202469]
[1751112894314,38.09770144,107350.0,107340.0,1.8077317]
[1751112894520,38.09770144,107350.0,107340.0,1.6206117]
[1751112894745,38.09770144,107350.0,107340.0,1.79387085]
[1751112899520,38.09770144,107350.0,107340.0,1.70084294]
[1751112901319,38.09770144,107350.0,107340.0,1.70080294]
[1751112907626,38.09770144,107350.0,107340.0,0.88801254]
[1751112907797,38.09770144,107350.0,107340.0,1.70128294]
[1751112908001,38.09770144,107350.0,107340.0,1.36128294]
[1751112908436,38.09770144,107350.0,107340.0,1.35828294]
[1751112909066,38.09770144,107350.0,107340.0,1.35428294]
[1751112909422,38.09770144,107350.0,107340.0,1.35728294]
[1751112910336,38.09770144,107350.0,107340.0,1.35828294]
[1751112920643,38.09770144,107350.0,107340.0,0.54501254]
[1751112920845,38.09770144,107350.0,107340.0,1.04564774]
[1751112921048,38.09770144,107350.0,107340.0,1.35816294]
[1751112921476,38.09770144,107350.0,107340.0,1.35516294]
[1751112921668,38.09770144,107350.0,107340.0,1.35716294]
[1751112922365,42.83770144,107350.0,107340.0,1.35416294]
[1751112922562,42.83770144,107350.0,107340.0,1.04364774]
[1751112922798,42.83770144,107350.0,107340.0,1.35616294]
[1751112923018,42.83770144,107350.0,107340.0,1.20612294]
[1751112923197,42.83770144,107350.0,107340.0,1.35620294]
[1751112933810,42.83770144,107350.0,107340.0,1.04368774]
[1751112934819,42.83770144,107350.0,107340.0,1.35620294]
[1751112941789,42.83770144,107350.0,107340.0,1.04368774]
[1751112944785,42.83770144,107350.0,107340.0,1.35620294]
[1751112948797,42.83770144,107350.0,107340.0,1.04368774]
[1751112949010,42.83770144,107350.0,107340.0,0.73117254]
[1751112949405,42.83770144,107350.0,107340.0,1.04368774]
[1751112949935,42.83770144,107350.0,107340.0,1.35620294]
[1751112950163,42.83770144,107350.0,107340.0,1.04368774]
[1751112950949,42.83770144,107350.0,107340.0,1.35620294]
[1751112951816,42.83770144,107350.0,107340.0,1.04368774]
[1751112952247,42.83770144,107350.0,107340.0,1.04364774]
[1751112952776,42.83770144,107350.0,107340.0,1.35616294]
[1751112953556,42.83770144,107350.0,107340.0,0.57155143]
[1751112953774,42.83770144,107350.0,107340.0,0.94138655]
[1751112954002,42.83770144,107350.0,107340.0,0.79130655]
[1751112954225,42.83770144,107350.0,107340.0,0.94138655]
[1751112954433,43.15953118,107350.0,107340.0,0.25555135]
[1751112954644,43.15953118,107350.0,107340.0,0.40563135]
[1751112954645,43.15021664,107350.0,107340.0,0.40563135]
[1751112954848,43.15953118,107350.0,107340.0,0.40563135]
[1751112955054,43.25229126,107350.0,107340.0,0.40563135]
[1751112955482,43.30229126,107350.0,107340.0,0.40563135]
[1751112956087,42.98046152,107350.0,107340.0,0.40563135]
[1751112957076,42.98046152,107350.0,107340.0,0.71814655]
[1751112958106,42.98046152,107350.0,107340.0,0.40559135]
[1751112959748,43.00843152,107350.0,107340.0,0.40559135]
[1751112962444,43.01774606,107350.0,107340.0,0.40559135]
[1751112963489,43.00843152,107350.0,107340.0,0.40559135]
[1751112964510,43.01774623,107350.0,107340.0,0.40559135]
[1751112966262,43.02706111,107350.0,107340.0,0.40559135]
[1751112966474,43.01774623,107350.0,107340.0,0.40559135]
[1751112967055,43.02706111,107350.0,107340.0,0.40559135]
[1751112967259,43.03637608,107350.0,107340.0,0.40559135]
[1751112967848,43.02706111,107350.0,107340.0,0.40559135]
[1751112968786,43.12509111,107350.0,107340.0,0.40559135]
[1751112969037,43.03637617,107350.0,107340.0,0.25555135]
[1751112969215,43.03637617,107350.0,107340.0,0.40551135]
[1751112969566,43.03637626,107350.0,107340.0,0.40551135]
[1751112969971,43.03637617,107350.0,107340.0,0.40551135]
[1751112972193,43.04569132,107350.0,107340.0,0.40551135]
[1751112973658,43.05500655,107350.0,107340.0,0.40551135]
[1751112974078,43.04569132,107350.0,107340.0,0.40551135]
[1751112975693,43.30820652,107350.0,107340.0,0.40551135]
[1751112975901,43.35820652,107350.0,107340.0,0.40551135]
[1751112976099,43.31752175,107350.0,107340.0,0.40551135]
[1751112976302,43.36752175,107350.0,107340.0,0.40551135]
[1751112977668,43.05500655,107350.0,107340.0,0.40551135]
[1751112978269,43.00500655,107350.0,107340.0,0.40551135]
[1751112978470,43.05500655,107350.0,107340.0,0.40551135]
[1751112979690,43.00500655,107350.0,107340.0,0.40551135]
[1751112979889,43.05500655,107350.0,107340.0,0.40551135]
[1751112980910,43.00500655,107350.0,107340.0,0.40551135]
[1751112981116,43.05500655,107350.0,107340.0,0.40551135]
[1751112982668,43.36752175,107350.0,107340.0,0.40551135]
[1751112986679,43.04569132,107350.0,107340.0,0.40551135]
[1751112986918,43.35820652,107350.0,107340.0,0.40551135]
[1751112987290,43.04569132,107350.0,107340.0,0.40551135]
[1751112988575,43.05500655,107350.0,107340.0,0.40551135]